[Event "Charlotte CC Fall GM-ALTO 2024"]
[Site "Charlotte"]
[Date "2024.11.23"]
[Round "1.2"]
[White "Griffith, Kyron"]
[Black "Gedajlovic, Max"]
[Result "0-1"]
[ECO "C01"]
[WhiteElo "2407"]
[BlackElo "2377"]
[Annotator "RC"]
[PlyCount "116"]
[EventDate "2024.11.22"]
[EventType "tourn"]
[EventCountry "USA"]
[SourceTitle "playchess.com"]
[Source "ChessBase"]
[SourceQuality "1"]
[TimeControl "5400+30"]

1. e4 {[%emt 1:31:00]} e6 {[%emt 1:31:00]} 2. d4 {[%emt 0:00:30]} d5 {[%emt 0:00:30]} 3. Nc3 {[%emt 0:00:30]} Bb4 {[%emt 0:00:30]} 4. exd5 {[%emt 0:00:30]} exd5 {[%emt 0:00:30]} 5. Bd3 {[%emt 0:00:30]} Nf6 {[%emt 0:00:30]} 6. a3 {[%emt 0:00:30]} Bd6 {[%emt 0:00:30]} 7. Bg5 {[%emt 0:00:30]} c6 {[%emt 0:00:30]} 8. Qf3 {[%emt 0:00:30]} Be7 {[%emt 0:00:30]} 9. h3 {[%emt 0:00:30]} O-O {[%emt 0:00:30]} 10. Nge2 {[%emt 0:00:30]} Re8 {[%emt 0:00:30]} 11. O-O-O {[%emt 0:00:30]} b5 {[%emt 0:00:30]} 12. Ng3 {[%emt 0:00:30]} h6 {[%emt 0:00:30]} 13. Bf4 {[%emt 0:00:30]} Na6 {[%emt 0:00:30]} 14. Rhe1 {[%emt 0:00:30]} b4 {[%emt 0:00:30]} 15. axb4 {[%emt 0:00:30]} Nxb4 {[%emt 0:00:30]} 16. Nf5 {[%emt 0:00:30]} Nxd3+ {[%emt 0:00:30]} 17. Qxd3 {[%emt 0:00:30]} Bxf5 {[%emt 0:00:30]} 18. Qxf5 {[%emt 0:00:30]} Qa5 {[%emt 0:00:30]} 19. f3 {[%emt 0:00:30]} Bb4 {[%emt 0:00:30]} 20. Rxe8+ {[%emt 0:00:30]} Rxe8 {[%emt 0:00:30]} 21. Nb1 {[%emt 0:00:30]} Re6 {[%emt 0:00:30]} 22. g4 {[%emt 0:00:30]} Ne4 {[%emt 0:00:30]} 23. Be5 {[%emt 0:00:30]} Nf2 {[%emt 0:00:30]} 24. Rf1 {[%emt 0:00:30]} Nxh3 {[%emt 0:00:30]} 25. g5 {[%emt 0:00:30]} Nxg5 {[%emt 0:00:30]} 26. Rg1 {[%emt 0:00:30]} Bf8 {[%emt 0:00:30]} 27. Nc3 {[%emt 0:00:30]} Qa1+ {[%emt 0:00:30]} 28. Nb1 {[%emt 0:00:30]} c5 {[%emt 0:00:30]} 29. f4 {[%emt 0:00:30]} Nf3 {[%emt 0:00:30]} 30. Rf1 {[%emt 0:00:30]} Nxd4 {[%emt 0:00:30]} 31. Bxd4 {[%emt 0:00:30]} cxd4 {[%emt 0:00:30]} 32. Qxd5 {[%emt 0:00:30]} Rd6 {[%emt 0:00:30]} 33. Qc4 {[%emt 0:00:30]} Qa5 {[%emt 0:00:30]} 34. Nd2 {[%emt 0:00:30]} Qa1+ {[%emt 0:00:30]} 35. Nb1 {[%emt 0:00:30]} h5 {[%emt 0:00:30]} 36. Rf3 {[%emt 0:00:30]} Qa6 {[%emt 0:00:30]} 37. Nd2 {[%emt 0:00:30]} Qxc4 {[%emt 0:00:30]} 38. Nxc4 {[%emt 0:00:30]} Rf6 39. Kd2 {[%emt 0:00:30]} g6 {[%emt 0:01:00]} 40. Kd3 {[%emt 0:00:30]} Bh6 {[%emt 0:00:30]} 41. Ke4 {[%emt 0:00:30]} Bg7 {[%emt 0:00:30]} 42. Ne5 {[%emt 0:00:30]} g5 {[%emt 0:00:30]} 43. f5 {[%emt 0:00:30]} Rb6 {[%emt 0:00:30]} 44. b3 {[%emt 0:00:30]} g4 {[%emt 0:00:30]} 45. Rf1 {[%emt 0:00:30]} Bxe5 {[%emt 0:00:30]} 46. Kxe5 {[%emt 0:00:30]} g3 {[%emt 0:00:30]} 47. Kf4 {[%emt 0:00:30]} h4 {[%emt 0:00:30]} 48. Kg4 {[%emt 0:00:30]} d3 {[%emt 0:00:30]} 49. cxd3 {[%emt 0:00:30]} Rb4+ {[%emt 0:00:30]} 50. Kh3 {[%emt 0:00:30]} Kg7 {[%emt 0:00:30]} 51. Ra1 {[%emt 0:00:30]} Kf6 {[%emt 0:00:30]} 52. Rxa7 {[%emt 0:00:30]} Rxb3 {[%emt 0:00:30]} 53. Kxh4 {[%emt 0:00:30]} g2 {[%emt 0:00:30]} 54. Ra1 {[%emt 0:00:30]} Rxd3 {[%emt 0:00:30]} 55. Kg4 {[%emt 0:00:30]} Rd8 {[%emt 0:00:30]} 56. Kf4 {[%emt 0:00:30]} Rg8 {[%emt 0:00:30]} 57. Rg1 {[%emt 0:00:30]} Rg5 {[%emt 0:00:30]} 58. Ke4 {[%emt 0:00:30]} Rg4+ {[%emt 0:00:30]} 0-1

[Event "Charlotte CC Fall GM-ALTO 2024"]
[Site "Charlotte"]
[Date "2024.11.23"]
[Round "1.3"]
[White "Williams, Justus"]
[Black "Ouellet, Maili-Jade"]
[Result "0-1"]
[ECO "E05"]
[WhiteElo "2355"]
[BlackElo "2352"]
[Annotator "RC"]
[PlyCount "54"]
[EventDate "2024.11.22"]
[EventType "tourn"]
[EventCountry "USA"]
[SourceTitle "playchess.com"]
[Source "ChessBase"]
[SourceQuality "1"]
[TimeControl "5400+30"]

1. c4 {[%emt 0:03:00]} e6 {[%emt 0:00:04]} 2. Nf3 {[%emt 0:00:38]} d5 {[%emt 0:00:04]} 3. g3 {[%emt 0:02:15]} Nf6 {[%emt 0:00:05]} 4. d4 {[%emt 0:00:27]} Be7 {[%emt 0:00:04]} 5. Bg2 {[%emt 0:00:08]} O-O {[%emt 0:00:06]} 6. O-O {[%emt 0:00:25]} dxc4 {[%emt 0:00:02]} 7. Qc2 {[%emt 0:05:53]} b5 {[%emt 0:00:08]} 8. a4 {[%emt 0:00:09]} b4 {[%emt 0:00:04]} 9. Nfd2 {[%emt 0:00:09]} Nd5 {[%emt 0:00:12]} 10. Nxc4 {[%emt 0:00:30]} c5 {[%emt 0:00:13]} 11. dxc5 {[%emt 0:03:37]} Ba6 {[%emt 0:00:29]} 12. Bf4 {[%emt 0:06:49]} Bxc5 {[%emt 0:04:31]} 13. Rd1 {[%emt 0:02:11]} Nd7 {[%emt 0:02:51]} 14. Nbd2 {[%emt 0:02:42]} Rc8 {[%emt 0:02:27]} 15. Qe4 {[%emt 0:02:32]} g5 {[%emt 0:10:14]} 16. Be5 {[%emt 0:03:27]} f5 {[%emt 0:04:12]} 17. Qf3 {[%emt 0:00:19]} N5b6 {[%emt 0:06:22]} 18. Bd6 {[%emt 0:12:05]} Bxd6 {[%emt 0:28:56]} 19. Nxd6 {[%emt 0:00:23]} Ne5 {[%emt 0:00:19]} 20. Qh5 {[%emt 0:00:16]} Qxd6 {[%emt 0:01:41]} 21. Nc4 {[%emt 0:00:33]} Qc7 {[%emt 0:02:45]} 22. Qxg5+ {[%emt 0:07:27]} Ng6 {[%emt 0:01:26]} 23. Nd6 {[%emt 0:01:05]} Rcd8 {[%emt 0:01:17]} 24. Nb5 {[%emt 0:00:26]} Rxd1+ {[%emt 0:09:34]} 25. Rxd1 {[%emt 0:00:03]} Qg7 {[%emt 0:00:24]} 26. Nd4 {[%emt 0:01:51]} Qf6 {[%emt 0:02:29]} 27. Qe3 {[%emt 0:01:41]} Rd8 {[%emt 0:01:24]} 0-1

[Event "Charlotte CC Fall GM-ALTO 2024"]
[Site "Charlotte"]
[Date "2024.11.23"]
[Round "1.5"]
[White "Padmini, Rout"]
[Black "Stefanov, Emil"]
[Result "1-0"]
[ECO "C55"]
[WhiteElo "2334"]
[BlackElo "2362"]
[Annotator "RC"]
[PlyCount "85"]
[EventDate "2024.11.22"]
[EventType "tourn"]
[EventCountry "USA"]
[SourceTitle "playchess.com"]
[Source "ChessBase"]
[SourceQuality "1"]
[TimeControl "5400+30"]

1. e4 {[%emt 0:00:21]} e5 {[%emt 0:00:10]} 2. Nf3 {[%emt 0:00:10]} Nc6 {[%emt 0:00:10]} 3. Bc4 {[%emt 0:00:07]} Nf6 {[%emt 0:00:20]} 4. d3 {[%emt 0:00:26]} Be7 {[%emt 0:00:25]} 5. O-O {[%emt 0:00:26]} O-O {[%emt 0:00:10]} 6. Re1 {[%emt 0:00:39]} d6 {[%emt 0:00:11]} 7. a4 {[%emt 0:01:13]} Be6 {[%emt 0:00:14]} 8. Bxe6 {[%emt 0:03:25]} fxe6 {[%emt 0:00:11]} 9. c3 {[%emt 0:00:51]} a5 {[%emt 0:01:04]} 10. Qb3 {[%emt 0:03:06]} Qd7 {[%emt 1:32:35]} 11. Nbd2 {[%emt 0:01:51]} h6 {[%emt 0:00:00]} 12. Nc4 {[%emt 0:01:53]} b6 {[%emt 0:00:00]} 13. Be3 {[%emt 0:10:45]} Rf7 {[%emt 0:00:00]} 14. Qb5 {[%emt 0:07:32]} Raf8 {[%emt 0:00:00]} 15. b4 {[%emt 0:05:37]} axb4 {[%emt 0:00:00]} 16. cxb4 {[%emt 0:00:38]} Ng4 {[%emt 0:00:00]} 17. h3 {[%emt 0:23:02]} Nxe3 {[%emt 0:00:00]} 18. Rxe3 {[%emt 0:00:10]} Ra8 {[%emt 0:00:00]} 19. a5 {[%emt 0:12:44]} d5 {[%emt 0:00:00]} 20. exd5 {[%emt 0:04:03]} exd5 {[%emt 0:00:00]} 21. Rc1 {[%emt 0:12:27]} dxc4 {[%emt 0:00:00]} 22. Qxc4 {[%emt 0:01:04]} Bxb4 {[%emt 0:00:00]} 23. axb6 {[%emt 0:02:06]} cxb6 {[%emt 0:00:00]} 24. Qxc6 {[%emt 0:00:33]} Qxc6 {[%emt 0:01:15]} 25. Rxc6 {[%emt 0:00:03]} Ra1+ {[%emt 0:02:43]} 26. Kh2 {[%emt 0:00:17]} Bc5 {[%emt 0:00:32]} 27. Rxe5 {[%emt 0:02:35]} Bxf2 {[%emt 0:00:41]} 28. Re2 {[%emt 0:02:28]} Bc5 {[%emt 0:00:56]} 29. d4 {[%emt 0:00:42]} Ba3 {[%emt 0:02:44]} 30. Rxb6 {[%emt 0:02:04]} Bc1 {[%emt 0:00:15]} 31. Rb3 {[%emt 0:00:13]} Bf4+ {[%emt 0:00:18]} 32. g3 {[%emt 0:00:05]} Bd6 {[%emt 0:00:21]} 33. Kg2 {[%emt 0:00:31]} Rd1 {[%emt 0:01:01]} 34. h4 {[%emt 0:00:22]} Rf5 {[%emt 0:00:39]} 35. Re6 {[%emt 0:01:16]} Bf8 {[%emt 0:00:32]} 36. g4 {[%emt 0:01:58]} Rd5 {[%emt 0:00:27]} 37. Rb8 {[%emt 0:00:36]} Kf7 {[%emt 0:00:13]} 38. Re2 {[%emt 0:00:32]} R1xd4 {[%emt 0:00:46]} 39. Nxd4 {[%emt 0:00:08]} Rxd4 {[%emt 0:00:08]} 40. Rf2+ {[%emt 0:00:05]} Kg6 {[%emt 0:00:18]} 41. Rbxf8 {[%emt 0:00:26]} Rxg4+ {[%emt 0:00:06]} 42. Kh3 {[%emt 0:00:05]} h5 {[%emt 0:00:05]} 43. Rg2 {[%emt 0:02:25]} 1-0

[Event "Charlotte CC Fall GM-ALTO 2024"]
[Site "Charlotte"]
[Date "2024.11.23"]
[Round "2.1"]
[White "Stremavicius, Titas"]
[Black "Stefanov, Emil"]
[Result "1-0"]
[ECO "A08"]
[WhiteElo "2545"]
[BlackElo "2362"]
[Annotator "TA"]
[PlyCount "117"]
[EventDate "2024.11.22"]
[EventType "tourn"]
[EventCountry "USA"]
[SourceTitle "playchess.com"]
[Source "ChessBase"]
[SourceQuality "1"]
[TimeControl "5400+30"]

{[%evp 9,117,18,12,8,14,32,11,16,13,10,13,11,12,-10,-5,-28,-33,-27,-31,-20,-15,-20,-13,-7,-7,-15,-18,-39,3,0,8,13,22,26,27,13,10,14,16,20,16,28,29,0,31,7,10,6,62,55,84,41,56,43,84,56,72,10,22,0,51,30,43,26,107,17,14,6,6,0,0,-29,42,58,47,66,54,67,75,78,152,145,292,205,372,370,643,557,698,699,698,698,752,759,782,781,805,797,972,981,1302,1268,1461,1588,29980,29982,29982,29983,5329,5329]} 1. Nf3 {[%emt 0:00:08]} d5 {[%emt 0:00:05]} 2. g3 {[%emt 0:00:20]} Nf6 {[%emt 0:00:08]} 3. Bg2 {[%emt 0:00:07]} c5 {[%emt 0:00:07]} 4. O-O {[%emt 0:00:48]} g6 {[%emt 0:00:06]} 5. c4 {[%emt 0:09:02]} Bg7 {[%emt 0:00:05]} 6. Qa4+ {[%emt 0:00:08]} Nc6 {[%emt 0:00:05]} 7. Ne5 {[%emt 0:05:48]} Qd6 {[%emt 0:00:09]} 8. cxd5 {[%emt 0:03:17] The position is equal.} Nxd5 {[%emt 0:00:16]} 9. Nc4 {[%emt 0:00:26]} Qd8 {[%emt 0:00:36]} 10. Nc3 {[%emt 0:02:22]} e6 {[%emt 0:00:15]} 11. d3 {[%emt 0:08:33]} O-O {[%emt 0:04:33]} 12. Bd2 {[%emt 0:03:16]} Nd4 {[%emt 0:05:11]} 13. Qd1 {[%emt 0:03:45]} b6 {[%emt 0:19:46]} 14. Rc1 {[%emt 0:13:47]} Bb7 {[%emt 0:10:55]} 15. b4 {[%emt 0:10:02]} Nxc3 {[%emt 0:13:21]} 16. Bxc3 {[%emt 0:00:06]} Bxg2 {[%emt 0:00:09]} 17. Kxg2 {[%emt 0:00:05]} b5 {[%emt 0:01:23]} 18. Nd2 {[%emt 0:06:13]} Rc8 {[%emt 0:09:22]} 19. e3 {[%emt 0:04:26]} Nf5 {[%emt 0:14:42][%cal Bd4f5,Bf5g7,Bg7e8][%mdl 32]} 20. Bxg7 {[%emt 0:05:16]} Nxg7 {[%emt 0:03:31]} 21. bxc5 {[%emt 0:01:59]} Qxd3 {[%emt 0:00:08]} 22. Nb3 {[%emt 0:02:48]} Qe4+ {[%emt 0:02:22]} 23. Qf3 {[%emt 0:00:10]} Qxf3+ {[%emt 0:02:51]} 24. Kxf3 {[%emt 0:00:04]} Rfd8 {[%emt 0:01:52]} 25. Rfd1 {[%emt 0:04:09]} Ne8 {[%emt 0:00:42] Repels Rd6} 26. Rd4 {[%emt 0:02:27]} Kf8 {[%emt 0:01:22]} 27. Rb4 {[%emt 0:02:11]} a6 {[%emt 0:02:52]} 28. a4 {[%emt 0:00:34]} bxa4 {[%emt 0:06:36]} ({Better is} 28... Nc7 $11) 29. Rxa4 $14 {[%emt 0:00:56]} Ra8 {[%emt 0:00:04]} 30. Nd4 {[%emt 0:05:36]} Rdb8 {[%emt 0:00:07]} 31. Nc6 {[%emt 0:01:26]} Rc8 {[%emt 0:01:26]} 32. Ne5 {[%emt 0:00:10]} Ke7 {[%emt 0:01:23] Against Nd7} 33. Rb4 {[%emt 0:02:41] White is much more active.} (33. g4 $16) 33... Rc7 {[%emt 0:00:30]} 34. Rd1 {[%emt 0:02:36]} f6 {[%emt 0:00:00]} (34... Nf6 $11) 35. Nd3 e5 {[%emt 0:01:00]} 36. Ra1 {[%emt 0:01:15]} Ng7 {[%emt 0:00:00] [#]} (36... a5 $11) 37. Rb6 {[%emt 0:00:13]} (37. Ra5 $1 $16) 37... a5 $11 {[%emt 0:01:00]} 38. Nb4 {[%emt 0:01:19]} Rxc5 {[%emt 0:00:00]} 39. e4 Ne8 {[%emt 0:01:00]} 40. Rb7+ {[%emt 0:00:56]} Nc7 {[%emt 0:00:00]} ({Black should try} 40... Ke6 $11 41. Rb6+ Kf7) 41. Nd5+ $14 {[%emt 0:00:13]} Kd6 42. Rb6+ {[%emt 0:00:53]} (42. Nxf6 $2 Rf8 43. Ra7 (43. Rb6+ $2 Ke7 $19) 43... Rxf6+ $19) (42. Nxc7 Rxc7 43. Rb6+ Rc6 $17) 42... Kd7 $1 (42... Rc6 $2 43. Rxc6+ Kxc6 44. Rc1+ (44. Nxf6 $2 Rf8 $19) 44... Kd7 45. Rxc7+ $18) 43. Nxf6+ {[%emt 0:00:30]} Ke7 {[%emt 0:02:00]} 44. Nxh7 {[%emt 0:00:00]} Rh8 {[%emt 0:00:00]} (44... a4 $142) 45. Ng5 $16 {[%emt 0:00:00]} Rxh2 {[%emt 0:00:01] A mistake that costs the game.} (45... Rf8+ $16 {keeps fighting.} 46. Kg4 (46. Kg2 Rf6 $18) 46... Rf6 47. Rxf6 Kxf6) 46. Ra2 {[%cal Oa2d2] [#] Black must now prevent Rd2!} (46. Rxg6 Nb5 47. Kg4 (47. Rxa5 $2 Nd4+ 48. Kg4 Rxa5 $19) (47. Re6+ Kd7 $18) 47... Nc3) 46... Rh6 $2 {[%emt 0:01:29]} (46... Nb5 47. Kg4 (47. Rxa5 $2 {too greedy.} Nd4+ 48. Kg4 Rxa5 $19) 47... Nd4 48. Rb7+ (48. Rxg6 Kd7 $18) 48... Ke8) 47. Rd2 $18 {[%emt 0:01:46]} a4 $2 {[%emt 0:00:00]} (47... Rc4 48. Kg4 a4) 48. Rbd6 {White wants to mate with Rd7+.} Rh5 {[%emt 0:01:00]} 49. Kg4 {[%emt 0:01:22] aiming for Rd7+.} Rxg5+ {[%emt 0:00:00]} 50. Kxg5 {[%emt 0:00:02][%mdl 4096] Endgame. KRR-KRN} Ne6+ {[%emt 0:00:26]} 51. Kxg6 {[%emt 0:00:16]} Nd4 {[%emt 0:00:14]} 52. Ra6 {[%emt 0:00:16]} Rc8 {[%emt 0:00:42]} 53. Rxa4 {[%emt 0:00:30]} Rg8+ {[%emt 0:00:30]} 54. Kh7 {[%emt 0:00:30]} Rf8 {[%emt 0:00:30]} 55. Ra7+ {[%emt 0:00:30]} Kf6 {[%emt 0:00:30]} 56. f4 {[%emt 0:00:30] Strongly threatening f5.} Ne6 {[%emt 0:00:30]} 57. Rd6 {[%emt 0:00:30]} exf4 {[%emt 0:00:30]} 58. gxf4 {[%emt 0:00:30]} Rh8+ {[%emt 0:00:30]} 59. Kxh8 {[%emt 0:00:30] Weighted Error Value: White=0.14 (very precise) /Black=0.39.  Mistake:       	White=2     	Black=8      Inaccurate:     	White=3     	Black=4      OK:         	White=14    	Black=18     Best:        	White=5     	Black=4      Strong:       	---       	Black=1} 1-0

[Event "Charlotte CC Fall GM-ALTO 2024"]
[Site "Charlotte"]
[Date "2024.11.23"]
[Round "2.2"]
[White "Fernandez, Daniel Howard"]
[Black "Padmini, Rout"]
[Result "1/2-1/2"]
[ECO "B62"]
[WhiteElo "2503"]
[BlackElo "2334"]
[Annotator "RC"]
[PlyCount "133"]
[EventDate "2024.11.22"]
[EventType "tourn"]
[EventCountry "USA"]
[SourceTitle "playchess.com"]
[Source "ChessBase"]
[SourceQuality "1"]
[TimeControl "5400+30"]

1. e4 {[%emt 0:07:34]} c5 {[%emt 0:00:14]} 2. Nf3 {[%emt 0:00:09]} d6 {[%emt 0:01:03]} 3. d4 {[%emt 0:04:07]} cxd4 {[%emt 0:00:14]} 4. Nxd4 {[%emt 0:01:06]} Nf6 {[%emt 0:00:20]} 5. Nc3 {[%emt 0:00:25]} Nc6 {[%emt 0:00:27]} 6. Bg5 {[%emt 0:00:46]} e6 {[%emt 0:00:43]} 7. Qd3 {[%emt 0:00:13]} a6 {[%emt 0:02:19]} 8. O-O-O {[%emt 0:00:04]} Bd7 {[%emt 0:02:10]} 9. Qg3 {[%emt 0:00:38]} Qa5 {[%emt 0:06:06]} 10. Be2 {[%emt 0:02:01]} Rc8 {[%emt 0:08:20]} 11. Nb3 {[%emt 0:06:25]} Qc7 {[%emt 0:02:13]} 12. Kb1 {[%emt 0:00:03]} b5 {[%emt 0:13:08]} 13. a3 {[%emt 0:05:25]} Na5 {[%emt 0:13:08]} 14. Rd4 {[%emt 0:11:56]} h6 {[%emt 0:14:48]} 15. Bxf6 {[%emt 0:01:01]} gxf6 {[%emt 0:00:02]} 16. f4 {[%emt 0:00:40]} h5 {[%emt 0:05:08]} 17. Rhd1 {[%emt 0:00:26]} h4 {[%emt 0:01:25]} 18. Qe1 {[%emt 0:00:27]} Nc6 {[%emt 0:05:41]} 19. R4d3 {[%emt 0:00:13]} b4 {[%emt 0:01:32]} 20. axb4 {[%emt 0:00:03]} Nxb4 {[%emt 0:00:12]} 21. Rh3 {[%emt 0:02:53]} Qb6 {[%emt 0:01:42]} 22. Nc1 {[%emt 0:09:21]} a5 {[%emt 0:05:18]} 23. f5 {[%emt 0:00:02]} Rb8 {[%emt 0:06:17]} 24. fxe6 {[%emt 0:01:34]} fxe6 {[%emt 0:00:48]} 25. Rd2 {[%emt 0:04:28]} a4 {[%emt 0:01:37]} 26. Nd3 {[%emt 0:03:29]} Nxd3 {[%emt 0:02:18]} 27. cxd3 {[%emt 0:00:03]} Qd4 {[%emt 0:06:04]} 28. Rc2 {[%emt 0:00:03]} a3 {[%emt 0:00:28]} 29. Rxh4 {[%emt 0:00:34]} Rxh4 {[%emt 0:00:14]} 30. Qxh4 {[%emt 0:00:05]} Rxb2+ {[%emt 0:00:55]} 31. Rxb2 {[%emt 0:00:04]} axb2 {[%emt 0:00:03]} 32. Qh5+ {[%emt 0:01:26]} Ke7 {[%emt 0:00:22]} 33. Qh7+ {[%emt 0:01:31]} Kd8 {[%emt 0:00:08]} 34. Kxb2 {[%emt 0:00:26]} f5 {[%emt 0:01:18]} 35. Qg8 {[%emt 0:00:26]} Ke7 {[%emt 0:00:37]} 36. Qg5+ {[%emt 0:00:09]} Qf6 {[%emt 0:00:06]} 37. Qxf6+ {[%emt 0:00:14]} Kxf6 {[%emt 0:00:01]} 38. exf5 {[%emt 0:01:33]} Kxf5 {[%emt 0:00:24]} 39. Kc2 {[%emt 0:01:04]} Ke5 {[%emt 0:01:08]} 40. h4 {[%emt 0:02:41]} d5 {[%emt 0:00:51]} 41. g4 {[%emt 0:02:59]} Bc6 {[%emt 0:00:20]} 42. g5 {[%emt 0:00:46]} d4 {[%emt 0:00:15]} 43. Nb1 {[%emt 0:01:06]} Kf4 {[%emt 0:00:31]} 44. g6 {[%emt 0:01:42]} e5 {[%emt 0:00:29]} 45. Nd2 {[%emt 0:00:53]} e4 {[%emt 0:00:56]} 46. Kd1 {[%emt 0:02:48]} Be8 {[%emt 0:00:31]} 47. h5 {[%emt 0:00:56]} exd3 {[%emt 0:00:21]} 48. Bxd3 {[%emt 0:00:03]} Ke3 {[%emt 0:00:41]} 49. Bf5 {[%emt 0:01:13]} d3 {[%emt 0:00:10]} 50. Nc4+ {[%emt 0:01:15]} Kd4 {[%emt 0:00:22]} 51. Nb2 {[%emt 0:00:22]} Bb5 {[%emt 0:00:23]} 52. Ke1 {[%emt 0:01:09]} Bh6 {[%emt 0:00:41]} 53. Kf2 {[%emt 0:01:01]} d2 {[%emt 0:00:24]} 54. Bg4 {[%emt 0:00:23]} Bd3 {[%emt 0:00:57]} 55. Bd1 {[%emt 0:02:37]} Bb5 {[%emt 0:00:04]} 56. Bf3 {[%emt 0:00:40]} Bd3 {[%emt 0:00:13]} 57. Kg3 {[%emt 0:00:19]} Bc2 {[%emt 0:00:56]} 58. Kg4 {[%emt 0:00:15]} Kc3 {[%emt 0:00:31]} 59. Nd1+ {[%emt 0:00:11]} Kd4 {[%emt 0:00:13]} 60. Nf2 {[%emt 0:00:10]} Ke3 {[%emt 0:01:04]} 61. Kg3 {[%emt 0:00:12]} Bf5 {[%emt 0:00:16]} 62. Bd1 {[%emt 0:00:47]} Be6 {[%emt 0:00:28]} 63. Bc2 {[%emt 0:00:28]} Bf4+ {[%emt 0:00:44]} 64. Kg2 {[%emt 0:00:03]} Bh6 {[%emt 0:00:22]} 65. Nd1+ {[%emt 0:00:35]} Kf4 {[%emt 0:00:35]} 66. Nc3 {[%emt 0:00:08]} Bg4 {[%emt 0:00:24]} 67. Bd1 {[%emt 0:01:25]} 1/2-1/2

[Event "Charlotte CC Fall GM-ALTO 2024"]
[Site "Charlotte"]
[Date "2024.11.23"]
[Round "2.3"]
[White "Ouellet, Maili-Jade"]
[Black "Mitrabha, Guha"]
[Result "1/2-1/2"]
[ECO "A10"]
[WhiteElo "2352"]
[BlackElo "2511"]
[Annotator "RC"]
[PlyCount "189"]
[EventDate "2024.11.22"]
[EventType "tourn"]
[EventCountry "USA"]
[SourceTitle "playchess.com"]
[Source "ChessBase"]
[SourceQuality "1"]
[TimeControl "5400+30"]

1. d4 {[%emt 0:00:01]} e6 {[%emt 0:11:13]} 2. c4 {[%emt 0:00:06]} f5 {[%emt 0:00:22]} 3. Nf3 {[%emt 0:01:01]} Nf6 {[%emt 0:00:02]} 4. Nc3 {[%emt 0:00:16]} Bb4 {[%emt 0:00:09]} 5. Qb3 {[%emt 0:01:15]} a5 {[%emt 0:00:09]} 6. g3 {[%emt 0:02:32]} b6 {[%emt 0:00:13]} 7. Bg2 {[%emt 0:00:46]} Bb7 {[%emt 0:00:09]} 8. O-O {[%emt 0:00:41]} Bxc3 {[%emt 0:01:00]} 9. Qxc3 {[%emt 0:00:41]} O-O {[%emt 0:00:11]} 10. b3 {[%emt 0:01:36]} d6 {[%emt 0:04:12]} 11. Bb2 {[%emt 0:01:30]} Nbd7 {[%emt 0:00:15]} 12. Rad1 {[%emt 0:24:19]} Qe8 {[%emt 0:01:24]} 13. Ne1 {[%emt 0:14:51]} Bxg2 {[%emt 0:03:00]} 14. Nxg2 {[%emt 0:00:10]} Qf7 {[%emt 0:04:11]} 15. Qc2 {[%emt 0:04:28]} a4 {[%emt 0:02:37]} 16. f3 {[%emt 0:06:27]} axb3 {[%emt 0:03:01]} 17. axb3 {[%emt 0:00:13]} Rfe8 {[%emt 0:00:59]} 18. Ra1 {[%emt 0:00:53]} Qe7 {[%emt 0:02:13]} 19. Rxa8 {[%emt 0:03:52]} Rxa8 {[%emt 0:00:16]} 20. Ra1 {[%emt 0:00:27]} Rxa1+ {[%emt 0:01:10]} 21. Bxa1 {[%emt 0:00:04]} g6 {[%emt 0:01:04]} 22. Qa2 {[%emt 0:03:52]} e5 {[%emt 0:00:33]} 23. Kf1 {[%emt 0:03:30]} c5 {[%emt 0:01:59]} 24. dxe5 {[%emt 0:01:53]} dxe5 {[%emt 0:00:22]} 25. Qa8+ {[%emt 0:01:28]} Kf7 {[%emt 0:00:48]} 26. Qc6 {[%emt 0:01:55]} Qe6 {[%emt 0:00:32]} 27. Qc7 {[%emt 0:01:46]} Ke7 {[%emt 0:00:35]} 28. f4 {[%emt 0:05:07]} Qd6 {[%emt 0:01:34]} 29. Qxd6+ {[%emt 0:03:21]} Kxd6 {[%emt 0:00:39]} 30. Ne3 {[%emt 0:00:23]} Ne4 {[%emt 0:00:43]} 31. Ke1 {[%emt 0:00:31]} exf4 {[%emt 0:01:11]} 32. gxf4 {[%emt 0:00:05]} Kc6 {[%emt 0:00:11]} 33. Kd1 {[%emt 0:03:23]} b5 {[%emt 0:01:57]} 34. Kc2 {[%emt 0:00:46]} Nb6 {[%emt 0:00:19]} 35. Be5 {[%emt 0:02:52]} Nf2 {[%emt 0:00:28]} 36. Bf6 {[%emt 0:01:34]} Nh3 {[%emt 0:00:45]} 37. Be5 {[%emt 0:02:36]} Nd7 {[%emt 0:02:12]} 38. cxb5+ {[%emt 0:00:17]} Kxb5 {[%emt 0:00:06]} 39. Nd5 {[%emt 0:05:50]} Nf2 {[%emt 0:00:31]} 40. Bb2 {[%emt 0:01:08]} Kc6 {[%emt 0:00:31]} 41. Nc3 {[%emt 0:01:22]} Nf6 {[%emt 0:01:13]} 42. h4 {[%emt 0:00:07]} Nd5 {[%emt 0:02:40]} 43. Nxd5 {[%emt 0:00:32]} Kxd5 {[%emt 0:00:02]} 44. Kd2 {[%emt 0:01:00]} Ke4 {[%emt 0:01:14]} 45. Be5 {[%emt 0:00:01]} Ng4 {[%emt 0:01:22]} 46. Bd6 {[%emt 0:00:34]} Kd5 {[%emt 0:00:49]} 47. Be7 {[%emt 0:00:11]} c4 {[%emt 0:01:36]} 48. b4 {[%emt 0:00:26]} Kc6 {[%emt 0:00:40]} 49. Kc3 {[%emt 0:00:55]} Kb5 {[%emt 0:00:01]} 50. Kd4 {[%emt 0:00:36]} Nf2 {[%emt 0:00:09]} 51. Kc3 {[%emt 0:01:10]} Ne4+ {[%emt 0:00:43]} 52. Kd4 {[%emt 0:00:06]} Ng3 {[%emt 0:00:02]} 53. Ke3 {[%emt 0:00:15]} Nf1+ {[%emt 0:01:04]} 54. Kd4 {[%emt 0:00:18]} Nd2 {[%emt 0:00:21]} 55. Kc3 {[%emt 0:00:25]} Nb3 {[%emt 0:00:11]} 56. e3 {[%emt 0:01:12]} Nc1 {[%emt 0:00:09]} 57. Kb2 {[%emt 0:00:20]} Nd3+ {[%emt 0:04:25]} 58. Kc3 {[%emt 0:00:01]} Nf2 {[%emt 0:00:08]} 59. Bf8 {[%emt 0:02:03]} Ne4+ {[%emt 0:01:04]} 60. Kd4 {[%emt 0:00:00]} Nf6 {[%emt 0:06:22]} 61. Bc5 {[%emt 0:00:00]} Nh5 {[%emt 0:10:57]} 62. Bf8 {[%emt 0:00:17]} Ng3 {[%emt 0:00:55]} 63. Kc3 {[%emt 0:00:26]} Nf1 {[%emt 0:00:52]} 64. Bc5 {[%emt 0:00:16]} Nh2 {[%emt 0:00:21]} 65. Be7 {[%emt 0:00:34]} Nf3 {[%emt 0:01:28]} 66. Bf6 {[%emt 0:00:23]} Ne1 {[%emt 0:00:36]} 67. Be7 {[%emt 0:00:24]} Ng2 {[%emt 0:01:55]} 68. Kd4 {[%emt 0:00:10]} h5 {[%emt 0:00:55]} 69. e4 {[%emt 0:00:56]} Nxf4 {[%emt 0:00:07]} 70. exf5 {[%emt 0:01:01]} gxf5 {[%emt 0:00:06]} 71. Bg5 {[%emt 0:01:00]} Nd3 {[%emt 0:00:20]} 72. Bd2 {[%emt 0:00:28]} f4 {[%emt 0:02:36]} 73. Ke4 {[%emt 0:00:00]} Kc6 {[%emt 0:00:53]} 74. Bc3 {[%emt 0:00:45]} Kb6 {[%emt 0:00:20]} 75. Bd2 {[%emt 0:00:19]} Kb5 {[%emt 0:00:07]} 76. Kf3 {[%emt 0:00:37]} Kc6 {[%emt 0:01:55]} 77. Ke4 {[%emt 0:00:02]} Kd6 {[%emt 0:04:19]} 78. Bc3 {[%emt 0:00:14]} Kd7 {[%emt 0:00:10]} 79. Bd2 {[%emt 0:00:33]} Kc6 {[%emt 0:00:07]} 80. Bc3 {[%emt 0:00:46]} Kb5 {[%emt 0:01:52]} 81. Bd2 {[%emt 0:00:21]} Ka4 {[%emt 0:00:06]} 82. Kf3 {[%emt 0:00:28]} Kb5 {[%emt 0:02:42]} 83. Ke4 {[%emt 0:00:22]} Ka6 {[%emt 0:00:29]} 84. Kf3 {[%emt 0:00:13]} Kb7 {[%emt 0:00:06]} 85. Ke4 {[%emt 0:00:08]} Kc7 {[%emt 0:00:03]} 86. Kf3 {[%emt 0:00:34]} Kd7 {[%emt 0:00:16]} 87. Ke4 {[%emt 0:00:08]} Ke6 {[%emt 0:00:12]} 88. Bc3 {[%emt 0:00:27]} Nc1 {[%emt 0:00:08]} 89. Bd2 {[%emt 0:00:43]} Nd3 {[%emt 0:02:49]} 90. Bxf4 {[%emt 0:00:49]} Nxb4 {[%emt 0:00:50]} 91. Kd4 {[%emt 0:01:21]} c3 {[%emt 0:02:40]} 92. Bg5 {[%emt 0:00:21]} Nd5 {[%emt 0:00:05]} 93. Bc1 {[%emt 0:00:43]} c2 {[%emt 0:00:04]} 94. Kd3 {[%emt 0:00:34]} Nb4+ {[%emt 0:00:17]} 95. Kc3 {[%emt 0:00:16]} 1/2-1/2